[Event "2nd Serbian League-Vojvodina 2023"]
[Site "Novi Sad"]
[Date "2023.11.06"]
[Round "7.7"]
[White "Nevednichy, Vladislav"]
[Black "Somborski, Nebojsa"]
[Result "1-0"]
[ECO "C55"]
[WhiteElo "2447"]
[BlackElo "2266"]
[Annotator "RC"]
[PlyCount "101"]
[EventDate "2023.10.22"]
[EventType "team-tourn"]
[EventCountry "SRB"]
[SourceTitle "playchess.com"]
[Source "ChessBase"]
[SourceQuality "1"]
[TimeControl "40/5400+30:1800+30"]

1. e4 {[%emt 0:00:04]} e5 {[%emt 0:01:03]} 2. Nf3 {[%emt 0:00:05]} Nc6 {[%emt 0:00:33]} 3. Bc4 {[%emt 0:01:02]} Nf6 {[%emt 0:00:44]} 4. d3 {[%emt 0:00:03]} Be7 {[%emt 0:00:54]} 5. O-O {[%emt 0:00:08]} O-O {[%emt 0:00:23]} 6. Re1 {[%emt 0:00:12]} d6 {[%emt 1:29:53]} 7. a4 {[%emt 0:00:37]} Na5 {[%emt 0:00:00]} 8. Ba2 {[%emt 0:00:03]} c5 {[%emt 0:00:00]} 9. c3 {[%emt 0:00:04]} Nc6 {[%emt 0:00:00]} 10. Na3 {[%emt 0:01:26]} a6 {[%emt 0:00:00]} 11. h3 {[%emt 0:01:23]} h6 {[%emt 0:00:00]} 12. Bd2 {[%emt 0:04:47]} Re8 {[%emt 0:00:00]} 13. Nc4 {[%emt 0:09:56]} Be6 {[%emt 0:00:00]} 14. Ne3 {[%emt 0:00:14]} Bxa2 {[%emt 0:00:00]} 15. Rxa2 {[%emt 0:00:01]} d5 {[%emt 0:00:00]} 16. exd5 {[%emt 0:00:25]} Nxd5 {[%emt 0:00:00]} 17. Nc4 {[%emt 0:00:28]} Bf6 {[%emt 0:00:00]} 18. a5 {[%emt 0:04:03]} Re6 {[%emt 0:00:00]} 19. Ra1 {[%emt 0:02:59]} Qe7 {[%emt 0:00:00]} 20. g3 {[%emt 0:09:30]} Rd8 {[%emt 0:00:00]} 21. Qc2 {[%emt 1:03:30]} Qd7 {[%emt 0:07:30]} 22. Rad1 {[%emt 0:00:00]} Ree8 {[%emt 0:00:30]} 23. Kg2 {[%emt 0:00:00]} Qc7 {[%emt 0:00:00]} 24. Qa4 {[%emt 0:00:00]} Re6 {[%emt 0:00:00]} 25. Bc1 {[%emt 0:00:00]} Rde8 {[%emt 0:00:00]} 26. Re2 {[%emt 0:00:00]} Bd8 {[%emt 0:00:00]} 27. Qb3 {[%emt 0:00:00]} Qd7 {[%emt 0:00:00]} 28. Rde1 {[%emt 0:00:00]} Bc7 {[%emt 0:03:00]} 29. Qa3 {[%emt 0:00:00]} Nf6 {[%emt 0:00:30]} 30. Rd2 {[%emt 0:00:00]} Qd5 {[%emt 0:00:00]} 31. Ne3 {[%emt 0:00:00]} Qd7 {[%emt 0:00:00]} 32. Nc4 {[%emt 0:00:00]} Qd5 {[%emt 0:00:00]} 33. Ne3 {[%emt 0:00:00]} Qd7 {[%emt 0:00:00]} 34. Qxc5 {[%emt 0:00:00]} Nxa5 {[%emt 0:00:00]} 35. Qa3 {[%emt 0:00:00]} Nc6 {[%emt 0:00:00]} 36. Qb3 {[%emt 0:00:00]} b5 {[%emt 0:00:00]} 37. Qd1 {[%emt 0:00:00]} Bb6 {[%emt 0:00:00]} 38. Nh4 {[%emt 0:08:30]} Nh7 {[%emt 0:00:00]} 39. Qg4 {[%emt 0:00:00]} Bxe3 {[%emt 0:00:00]} 40. Rxe3 {[%emt 0:00:00]} Qd5+ {[%emt 0:00:00]} 41. Qf3 {[%emt 0:10:44]} Rd8 {[%emt 0:23:15]} 42. Qxd5 {[%emt 0:01:14]} Rxd5 {[%emt 0:00:14]} 43. b4 {[%emt 0:01:19]} Nf6 {[%emt 0:04:48]} 44. Ra2 {[%emt 0:00:51]} Nb8 {[%emt 0:01:30]} 45. Nf3 {[%emt 0:19:22]} Nfd7 {[%emt 0:08:13]} 46. d4 {[%emt 0:00:00]} exd4 {[%emt 0:00:00]} 47. Nxd4 {[%emt 0:00:00]} Rxe3 {[%emt 0:00:00]} 48. Bxe3 {[%emt 0:01:30]} h5 {[%emt 0:01:30]} 49. Bf4 {[%emt 0:00:00]} g5 {[%emt 0:00:00]} 50. Bc7 {[%emt 0:01:00]} f6 {[%emt 0:01:00]} 51. Kf3 {[%emt 0:00:30]} 1-0

[Event "2nd Serbian League-Vojvodina 2023"]
[Site "Novi Sad"]
[Date "2023.11.06"]
[Round "7.8"]
[White "Jakovljev, Zoran"]
[Black "Stoleriu, George"]
[Result "0-1"]
[ECO "B10"]
[WhiteElo "2194"]
[BlackElo "2400"]
[Annotator "RC"]
[PlyCount "114"]
[EventDate "2023.10.22"]
[EventType "team-tourn"]
[EventCountry "SRB"]
[SourceTitle "playchess.com"]
[Source "ChessBase"]
[SourceQuality "1"]
[TimeControl "40/5400+30:1800+30"]

1. e4 {[%emt 0:03:28]} c6 {[%emt 0:02:29]} 2. d3 {[%emt 0:00:10]} d5 {[%emt 0:00:03]} 3. Nd2 {[%emt 0:00:05]} e5 {[%emt 0:00:02]} 4. Ngf3 {[%emt 0:00:07]} Bd6 {[%emt 0:00:03]} 5. g3 {[%emt 0:00:09]} Nf6 {[%emt 0:00:02]} 6. Bg2 {[%emt 0:00:05]} O-O {[%emt 0:00:03]} 7. O-O {[%emt 0:00:02]} Re8 {[%emt 0:00:07]} 8. a4 {[%emt 0:00:22]} a5 {[%emt 0:06:27]} 9. Re1 {[%emt 0:00:31]} d4 {[%emt 0:01:43]} 10. c3 {[%emt 0:00:41]} c5 {[%emt 0:00:38]} 11. cxd4 {[%emt 0:00:23]} cxd4 {[%emt 0:00:08]} 12. Nc4 {[%emt 0:00:06]} Bc7 {[%emt 0:01:21]} 13. h3 {[%emt 0:00:36]} Nc6 {[%emt 0:00:30]} 14. Rf1 {[%emt 0:01:06]} Nd7 {[%emt 0:04:36]} 15. b3 {[%emt 0:05:02]} Nc5 {[%emt 0:06:37]} 16. Ba3 {[%emt 0:00:18]} Nb4 {[%emt 0:00:03]} 17. Bxb4 {[%emt 0:00:32]} axb4 {[%emt 0:00:02]} 18. Rb1 {[%emt 0:00:25]} Qf6 {[%emt 0:12:12]} 19. Qe2 {[%emt 0:04:44]} Bd7 {[%emt 0:03:56]} 20. Rfc1 {[%emt 0:02:06]} b5 {[%emt 0:01:13]} 21. axb5 {[%emt 0:01:58]} Bxb5 {[%emt 0:00:25]} 22. Qd2 {[%emt 0:07:04]} Bxc4 {[%emt 0:05:43]} 23. Rxc4 {[%emt 0:00:27]} Bd6 {[%emt 0:00:11]} 24. Qc2 {[%emt 0:18:38]} Nb7 {[%emt 0:01:56]} 25. Qd1 {[%emt 0:02:11]} Na5 {[%emt 0:00:49]} 26. Rcc1 {[%emt 0:00:31]} Rec8 {[%emt 0:00:53]} 27. Ra1 {[%emt 0:09:57]} Qd8 {[%emt 0:03:07]} 28. Rcb1 {[%emt 0:02:55]} Rc3 {[%emt 0:02:01]} 29. Nxd4 {[%emt 0:01:05]} exd4 {[%emt 0:00:37]} 30. e5 {[%emt 0:00:01]} Bc7 {[%emt 0:01:37]} 31. Bxa8 {[%emt 0:00:08]} Qxa8 {[%emt 0:00:03]} 32. Qg4 {[%emt 0:07:11]} Qd5 {[%emt 0:05:42]} 33. e6 {[%emt 0:04:04]} fxe6 {[%emt 0:01:21]} 34. Re1 {[%emt 0:00:05]} Kf7 {[%emt 0:00:40]} 35. Re4 {[%emt 0:00:19]} Rxd3 {[%emt 0:20:27]} 36. Rae1 {[%emt 0:01:00]} h5 {[%emt 0:00:12]} 37. Qe2 {[%emt 0:00:33]} Re3 {[%emt 0:00:04]} 38. Qc2 {[%emt 0:06:50]} Rxe1+ 39. Rxe1 Bd6 {[%emt 0:01:22]} 40. Rb1 {[%emt 0:05:58]} h4 {[%emt 0:01:39]} 41. Qd3 {[%emt 0:30:18]} Qf5 {[%emt 0:30:33]} 42. Qxf5+ {[%emt 0:00:58]} exf5 {[%emt 0:00:02]} 43. gxh4 {[%emt 0:00:35]} Ke6 {[%emt 0:03:23]} 44. Kf1 {[%emt 0:00:10]} d3 {[%emt 0:02:20]} 45. Rd1 {[%emt 0:00:18]} Nxb3 {[%emt 0:00:02]} 46. Rxd3 {[%emt 0:00:33]} Nc5 {[%emt 0:00:05]} 47. Rd4 {[%emt 0:01:41]} Ne4 {[%emt 0:01:32]} 48. f3 {[%emt 0:00:22]} Nc3 {[%emt 0:03:50]} 49. Rd2 {[%emt 0:01:39]} Be5 {[%emt 0:03:56]} 50. Rb2 {[%emt 0:00:26]} Nd5 {[%emt 0:00:02]} 51. Rb3 {[%emt 0:00:39]} Bc3 {[%emt 0:00:24]} 52. Ke2 {[%emt 0:00:09]} Ke5 {[%emt 0:00:26]} 53. Kd3 {[%emt 0:00:47]} Nf4+ {[%emt 0:01:09]} 54. Kc4 {[%emt 0:00:04]} Nxh3 {[%emt 0:00:46]} 55. Rb1 {[%emt 0:00:02]} Kf4 {[%emt 0:00:12]} 56. Rh1 {[%emt 0:00:15]} Nf2 {[%emt 0:00:14]} 57. Rg1 {[%emt 0:00:25]} Kxf3 {[%emt 0:00:10]} 0-1

[Event "2nd Serbian League-Vojvodina 2023"]
[Site "Novi Sad"]
[Date "2023.11.06"]
[Round "7.9"]
[White "Sekulic, Dusan"]
[Black "Popovic, Zoran"]
[Result "0-1"]
[ECO "E66"]
[WhiteElo "2145"]
[BlackElo "2210"]
[Annotator "RC"]
[PlyCount "108"]
[EventDate "2023.10.22"]
[EventType "team-tourn"]
[EventCountry "SRB"]
[SourceTitle "playchess.com"]
[Source "ChessBase"]
[SourceQuality "1"]
[TimeControl "40/5400+30:1800+30"]

1. d4 {[%emt 0:00:52]} Nf6 {[%emt 0:00:09]} 2. Nf3 {[%emt 0:00:15]} g6 {[%emt 0:00:13]} 3. c4 {[%emt 0:00:10]} Bg7 {[%emt 0:00:06]} 4. g3 {[%emt 0:00:06]} O-O {[%emt 0:00:17]} 5. Bg2 {[%emt 0:00:04]} d6 {[%emt 0:00:05]} 6. Nc3 {[%emt 0:00:23]} Nc6 {[%emt 0:00:27]} 7. O-O {[%emt 1:32:10]} a6 {[%emt 0:00:12]} 8. d5 {[%emt 0:00:00]} Na5 {[%emt 0:00:20]} 9. Qd3 {[%emt 0:00:00]} c5 {[%emt 0:01:53]} 10. Bd2 {[%emt 0:00:00]} Rb8 {[%emt 0:05:12]} 11. Rac1 {[%emt 0:00:00]} b5 {[%emt 0:00:51]} 12. b3 {[%emt 0:00:00]} bxc4 {[%emt 0:21:10]} 13. bxc4 {[%emt 0:00:00]} Rb4 {[%emt 0:01:12]} 14. Ne4 {[%emt 0:00:00]} Ra4 {[%emt 0:11:35]} 15. Nxf6+ {[%emt 0:00:00]} Bxf6 {[%emt 0:00:09]} 16. Rc2 {[%emt 0:00:00]} Bf5 {[%emt 0:09:45]} 17. e4 {[%emt 0:00:00]} Bd7 {[%emt 0:00:06]} 18. Bh6 {[%emt 0:00:00]} Re8 {[%emt 0:01:29]} 19. Nd2 {[%emt 0:00:00]} Rb4 {[%emt 0:03:40]} 20. Be3 {[%emt 0:00:00]} Ba4 {[%emt 0:04:00]} 21. Rcc1 {[%emt 0:00:00]} Rb2 {[%emt 0:00:54]} 22. f4 {[%emt 0:00:00]} Qc7 {[%emt 0:02:09]} 23. e5 {[%emt 0:00:00]} Bg7 {[%emt 0:01:04]} 24. Ne4 {[%emt 0:00:00]} Bd7 {[%emt 0:02:23]} 25. Rf2 {[%emt 0:00:00]} Rxf2 {[%emt 0:08:52]} 26. Bxf2 {[%emt 0:09:30]} Bf5 {[%emt 0:01:10]} 27. Qa3 {[%emt 0:00:00]} Rc8 {[%emt 0:13:05]} 28. exd6 {[%emt 0:00:00]} exd6 {[%emt 0:02:34]} 29. Nxd6 {[%emt 0:00:00]} Qxd6 {[%emt 0:01:08]} 30. Qxa5 {[%emt 0:00:00]} Bf8 {[%emt 0:00:25]} 31. Rc3 {[%emt 0:00:00]} h5 {[%emt 0:01:23]} 32. h4 {[%emt 0:00:00]} Re8 {[%emt 0:01:42]} 33. Rb3 {[%emt 0:00:00]} Qf6 {[%emt 0:02:27]} 34. Bxc5 {[%emt 0:00:00]} Qa1+ {[%emt 0:00:18]} 35. Kh2 {[%emt 0:00:00]} Re2 {[%emt 0:00:13]} 36. Rb8 {[%emt 0:00:00]} Rxg2+ {[%emt 0:03:00]} 37. Kxg2 {[%emt 0:00:00]} Bh3+ {[%emt 0:00:04]} 38. Kf2 {[%emt 0:00:00]} Qf1+ {[%emt 0:00:37]} 39. Ke3 {[%emt 0:00:00]} Qg1+ {[%emt 0:01:04]} 40. Kd2 {[%emt 0:00:00]} Qg2+ {[%emt 0:00:42]} 41. Kc1 {[%emt 0:29:07]} Qf1+ {[%emt 0:32:55]} 42. Kb2 {[%emt 0:03:10]} Qe2+ {[%emt 0:00:00]} 43. Ka3 {[%emt 0:01:04]} Qd3+ {[%emt 0:00:00]} 44. Rb3 {[%emt 0:00:39]} Qxc4 {[%emt 0:01:30]} 45. Rc3 {[%emt 0:02:16]} Qxd5 {[%emt 0:00:00]} 46. Qb4 {[%emt 0:01:40]} Be6 {[%emt 0:00:00]} 47. Ka4 {[%emt 0:01:30]} Qxa2+ {[%emt 0:00:03]} 48. Qa3 {[%emt 0:00:14]} Qb1 {[%emt 0:01:57]} 49. Bb4 {[%emt 0:00:36]} Be7 {[%emt 0:00:00]} 50. Ka5 {[%emt 0:00:20]} Bd8+ {[%emt 0:00:01]} 51. Kxa6 {[%emt 0:00:08]} Qf1+ {[%emt 0:00:21]} 52. Ka7 {[%emt 0:00:29]} Qb5 {[%emt 0:00:37]} 53. Bc5 {[%emt 0:01:43]} Bd5 {[%emt 0:00:36]} 54. Qa6 {[%emt 0:00:16]} Qd7+ {[%emt 0:00:11]} 0-1

[Event "2nd Serbian League-Vojvodina 2023"]
[Site "Novi Sad"]
[Date "2023.11.06"]
[Round "7.10"]
[White "Telecki, Ivan"]
[Black "Kovacevic, Sinisa"]
[Result "1-0"]
[ECO "C00"]
[WhiteElo "2260"]
[BlackElo "2240"]
[Annotator "RC"]
[PlyCount "51"]
[EventDate "2023.10.22"]
[EventType "team-tourn"]
[EventCountry "SRB"]
[SourceTitle "playchess.com"]
[Source "ChessBase"]
[SourceQuality "1"]
[TimeControl "40/5400+30:1800+30"]

1. e4 {[%emt 0:00:03]} e6 {[%emt 0:00:08]} 2. d3 {[%emt 0:00:19]} d5 {[%emt 0:00:20]} 3. Nd2 {[%emt 0:00:12]} c5 {[%emt 0:00:08]} 4. g3 {[%emt 0:00:23]} Nc6 {[%emt 0:00:11]} 5. Bg2 {[%emt 0:01:03]} Nf6 {[%emt 0:00:34]} 6. Ngf3 {[%emt 0:02:19]} Be7 {[%emt 0:00:31]} 7. O-O {[%emt 0:01:42]} O-O {[%emt 0:03:25]} 8. b3 {[%emt 1:28:29]} b5 {[%emt 1:29:13]} 9. Bb2 {[%emt 0:00:00]} a5 {[%emt 0:00:30]} 10. e5 {[%emt 0:00:00]} Nd7 {[%emt 0:00:30]} 11. c4 {[%emt 0:01:30]} bxc4 {[%emt 0:00:00]} 12. dxc4 {[%emt 0:00:00]} Ba6 {[%emt 0:00:00]} 13. Re1 {[%emt 0:00:00]} Rb8 {[%emt 0:00:00]} 14. cxd5 {[%emt 0:00:00]} exd5 {[%emt 0:00:00]} 15. e6 {[%emt 0:02:00]} fxe6 {[%emt 0:00:00]} 16. Rxe6 {[%emt 0:00:00]} Qc8 {[%emt 0:00:00]} 17. Ng5 {[%emt 0:00:00]} Nb6 {[%emt 0:00:00]} 18. Qh5 {[%emt 0:00:00]} Bxg5 {[%emt 0:00:00]} 19. Qxg5 {[%emt 0:00:00]} Rf7 {[%emt 0:04:30]} 20. Rae1 {[%emt 0:02:30]} Qd7 {[%emt 0:00:30]} 21. Nf3 {[%emt 0:00:30]} Bd3 {[%emt 0:00:30]} 22. Bh3 {[%emt 0:00:30]} Qd8 {[%emt 0:00:00]} 23. Rxc6 {[%emt 0:00:30]} Qd7 {[%emt 0:01:00]} 24. Rf6 {[%emt 0:00:30]} Rc8 {[%emt 0:00:30]} 25. Rfe6 {[%emt 0:00:30]} Rcf8 {[%emt 0:00:30]} 26. Rf6 {[%emt 0:00:30]} 1-0

[Event "2nd Serbian League-Vojvodina 2023"]
[Site "Novi Sad"]
[Date "2023.11.06"]
[Round "7.11"]
[White "Parezanin, Darko"]
[Black "Varga, Robert"]
[Result "1-0"]
[ECO "B15"]
[WhiteElo "2192"]
[BlackElo "2043"]
[Annotator "RC"]
[PlyCount "64"]
[EventDate "2023.10.22"]
[EventType "team-tourn"]
[EventCountry "SRB"]
[SourceTitle "playchess.com"]
[Source "ChessBase"]
[SourceQuality "1"]
[TimeControl "40/5400+30:1800+30"]

1. e4 {[%emt 0:06:34]} c6 {[%emt 0:00:19]} 2. Nf3 {[%emt 0:00:21]} d5 {[%emt 0:00:17]} 3. Nc3 {[%emt 0:00:06]} dxe4 {[%emt 0:01:07]} 4. Nxe4 {[%emt 0:00:07]} Nf6 {[%emt 1:30:47]} 5. Nxf6+ {[%emt 0:00:18]} exf6 {[%emt 0:00:00]} 6. d4 {[%emt 1:26:04]} Bd6 {[%emt 0:00:00]} 7. c3 {[%emt 0:00:00]} O-O {[%emt 0:00:00]} 8. Bd3 {[%emt 0:00:00]} Re8+ {[%emt 0:00:00]} 9. Be3 {[%emt 0:00:00]} c5 {[%emt 0:00:00]} 10. dxc5 {[%emt 0:00:00]} Bxc5 {[%emt 0:00:00]} 11. Bxh7+ {[%emt 0:00:00]} Kxh7 {[%emt 0:00:00]} 12. Qxd8 {[%emt 0:00:00]} Rxd8 {[%emt 0:00:00]} 13. Bxc5 {[%emt 0:00:00]} b6 {[%emt 0:00:00]} 14. Bd4 {[%emt 0:00:00]} Be6 {[%emt 0:00:00]} 15. b3 {[%emt 0:00:00]} Nc6 {[%emt 0:00:00]} 16. O-O-O {[%emt 0:00:00]} Rac8 {[%emt 0:00:00]} 17. Kb2 {[%emt 0:00:00]} Rd7 {[%emt 0:00:00]} 18. Rd2 {[%emt 0:00:00]} Rcd8 {[%emt 0:00:00]} 19. Rhd1 {[%emt 0:00:00]} Bg4 {[%emt 0:00:00]} 20. Be3 {[%emt 0:00:00]} Bxf3 {[%emt 0:00:00]} 21. gxf3 {[%emt 0:00:00]} Rxd2+ {[%emt 0:00:00]} 22. Rxd2 {[%emt 0:00:00]} Rxd2+ {[%emt 0:00:00]} 23. Bxd2 {[%emt 0:00:00]} Ne5 {[%emt 0:00:00]} 24. c4 {[%emt 0:00:00]} Nxf3 {[%emt 0:00:00]} 25. Be3 {[%emt 0:00:00]} Ne5 {[%emt 0:00:00]} 26. Kc3 {[%emt 0:00:00]} Nc6 {[%emt 0:00:00]} 27. b4 {[%emt 0:00:00]} Kg6 {[%emt 0:00:00]} 28. b5 {[%emt 0:00:00]} Ne7 {[%emt 0:00:00]} 29. c5 {[%emt 0:00:00]} Kf5 {[%emt 0:00:00]} 30. Kc4 {[%emt 0:00:00]} Ke6 {[%emt 0:00:00]} 31. cxb6 {[%emt 0:00:00]} axb6 {[%emt 0:00:00]} 32. Bxb6 {[%emt 0:00:00]} Kd7 {[%emt 0:00:00]} 1-0

[Event "2nd Serbian League-Vojvodina 2023"]
[Site "Novi Sad"]
[Date "2023.11.06"]
[Round "7.12"]
[White "Santrac, Bozo"]
[Black "Zolotic, Zoran"]
[Result "0-1"]
[ECO "B06"]
[WhiteElo "1972"]
[BlackElo "2193"]
[Annotator "RC"]
[PlyCount "62"]
[EventDate "2023.10.22"]
[EventType "team-tourn"]
[EventCountry "SRB"]
[SourceTitle "playchess.com"]
[Source "ChessBase"]
[SourceQuality "1"]
[TimeControl "40/5400+30:1800+30"]

1. e4 {[%emt 0:00:03]} g6 {[%emt 0:00:46]} 2. d4 {[%emt 0:00:42]} Bg7 {[%emt 0:00:10]} 3. Bc4 {[%emt 0:00:26]} d6 {[%emt 0:00:19]} 4. Nf3 {[%emt 0:00:18]} Nf6 {[%emt 0:00:11]} 5. Qe2 {[%emt 0:00:42]} O-O {[%emt 0:01:25]} 6. Bg5 {[%emt 0:00:24]} c6 {[%emt 0:00:32]} 7. Bb3 {[%emt 0:00:16]} a5 {[%emt 0:00:47]} 8. c3 {[%emt 1:31:39]} Qc7 {[%emt 0:02:24]} 9. Nbd2 {[%emt 0:00:00]} e5 {[%emt 0:00:28]} 10. h3 {[%emt 0:00:00]} Nbd7 {[%emt 0:01:48]} 11. O-O {[%emt 0:00:00]} Qb6 {[%emt 0:00:42]} 12. Rab1 {[%emt 0:00:00]} Qc7 {[%emt 1:26:58]} 13. Qe3 {[%emt 0:00:00]} a4 {[%emt 0:00:00]} 14. Bc2 {[%emt 0:00:00]} Re8 {[%emt 0:00:00]} 15. Bh6 {[%emt 0:00:00]} Bh8 {[%emt 0:00:00]} 16. Rfe1 {[%emt 0:00:00]} b5 {[%emt 0:02:00]} 17. b3 {[%emt 0:00:00]} exd4 {[%emt 0:00:00]} 18. cxd4 {[%emt 0:00:00]} Nd5 {[%emt 0:01:00]} 19. Qd3 {[%emt 0:00:00]} Nb4 {[%emt 0:00:00]} 20. Qc3 {[%emt 0:06:00]} Nxa2 {[%emt 0:01:00]} 21. Qb2 {[%emt 0:00:30]} Nb4 {[%emt 0:00:30]} 22. bxa4 {[%emt 0:00:30]} Nxc2 {[%emt 0:00:00]} 23. Qxc2 {[%emt 0:00:30]} bxa4 {[%emt 0:00:00]} 24. Ra1 {[%emt 0:00:00]} Nb6 {[%emt 0:00:00]} 25. Ra3 {[%emt 0:00:00]} Bd7 {[%emt 0:02:00]} 26. Bf4 {[%emt 0:00:00]} Bg7 {[%emt 0:00:00]} 27. Nc4 {[%emt 0:00:00]} Nxc4 {[%emt 0:00:00]} 28. Qxc4 {[%emt 0:00:00]} c5 {[%emt 0:00:00]} 29. Ng5 {[%emt 0:00:00]} d5 {[%emt 0:00:00]} 30. Qc1 {[%emt 0:00:00]} Qa5 {[%emt 0:00:00]} 31. dxc5 {[%emt 0:00:00]} Bb2 0-1

[Event "2nd Serbian League-Vojvodina 2023"]
[Site "Novi Sad"]
[Date "2023.11.06"]
[Round "7.13"]
[White "Bokros, Albert"]
[Black "Szalai, Kornel"]
[Result "1-0"]
[ECO "B38"]
[WhiteElo "2447"]
[BlackElo "2383"]
[Annotator "RC"]
[PlyCount "63"]
[EventDate "2023.10.22"]
[EventType "team-tourn"]
[EventCountry "SRB"]
[SourceTitle "playchess.com"]
[Source "ChessBase"]
[SourceQuality "1"]
[TimeControl "40/5400+30:1800+30"]

1. e4 {[%emt 1:31:00]} c5 {[%emt 1:31:00]} 2. Nf3 {[%emt 0:00:30]} g6 {[%emt 0:00:30]} 3. d4 {[%emt 0:00:30]} Bg7 {[%emt 0:00:30]} 4. c4 {[%emt 0:00:30]} cxd4 {[%emt 0:00:30]} 5. Nxd4 {[%emt 0:00:30]} Nc6 {[%emt 0:00:30]} 6. Be3 {[%emt 0:00:30]} Nf6 {[%emt 0:00:30]} 7. Nc3 {[%emt 0:00:30]} d6 {[%emt 0:00:30]} 8. Be2 {[%emt 0:00:30]} O-O {[%emt 0:00:30]} 9. O-O {[%emt 0:00:30]} Bd7 {[%emt 0:00:30]} 10. Nc2 {[%emt 0:00:30]} Qa5 {[%emt 0:00:30]} 11. Rc1 {[%emt 0:00:30]} Rfc8 {[%emt 0:00:30]} 12. f3 {[%emt 0:00:30]} Be6 {[%emt 0:00:30]} 13. Qd2 {[%emt 0:00:30]} Nd7 {[%emt 0:00:30]} 14. b4 {[%emt 0:00:30]} Qd8 {[%emt 0:00:30]} 15. f4 {[%emt 0:00:30]} Nb6 {[%emt 0:00:30]} 16. Nd5 {[%emt 0:00:30]} Bxd5 {[%emt 0:00:30]} 17. exd5 {[%emt 0:00:30]} Nb8 18. Nd4 a5 19. bxa5 {[%emt 0:01:00]} N6d7 {[%emt 0:01:30]} 20. Nb3 {[%emt 0:00:30]} Na6 {[%emt 0:00:30]} 21. Rb1 {[%emt 0:00:30]} Nac5 {[%emt 0:00:30]} 22. Nxc5 {[%emt 0:00:30]} Nxc5 {[%emt 0:00:30]} 23. Rb5 {[%emt 0:00:30]} Ne4 {[%emt 0:00:30]} 24. Qd3 {[%emt 0:00:30]} Nc3 {[%emt 0:00:30]} 25. Rxb7 {[%emt 0:00:30]} Qxa5 {[%emt 0:00:30]} 26. Bg4 {[%emt 0:00:30]} Rc7 {[%emt 0:00:30]} 27. Rxc7 {[%emt 0:00:30]} Qxc7 {[%emt 0:00:30]} 28. f5 {[%emt 0:00:30]} Nxa2 29. fxg6 Bf6 {[%emt 0:01:00]} 30. gxf7+ {[%emt 0:01:00]} Kg7 {[%emt 0:00:30]} 31. Be6 {[%emt 0:00:30]} Nb4 {[%emt 0:00:30]} 32. Qe2 {[%emt 0:00:30]} 1-0

[Event "2nd Serbian League-Vojvodina 2023"]
[Site "Novi Sad"]
[Date "2023.11.06"]
[Round "7.15"]
[White "Strbac, Mladen"]
[Black "Farkas, Tibor"]
[Result "1/2-1/2"]
[ECO "B53"]
[WhiteElo "2246"]
[BlackElo "2210"]
[Annotator "RC"]
[PlyCount "37"]
[EventDate "2023.10.22"]
[EventType "team-tourn"]
[EventCountry "SRB"]
[SourceTitle "playchess.com"]
[Source "ChessBase"]
[SourceQuality "1"]
[TimeControl "40/5400+30:1800+30"]

1. e4 {[%emt 0:00:04]} c5 {[%emt 0:00:17]} 2. Nf3 {[%emt 0:00:40]} d6 {[%emt 0:00:21]} 3. d4 {[%emt 0:00:31]} cxd4 {[%emt 0:00:11]} 4. Qxd4 {[%emt 0:00:34]} Nc6 {[%emt 0:01:05]} 5. Bb5 {[%emt 0:00:17]} Bd7 {[%emt 0:00:21]} 6. Bxc6 {[%emt 0:00:41]} Bxc6 {[%emt 0:00:05]} 7. Nc3 {[%emt 0:01:03]} Nf6 {[%emt 0:02:03]} 8. Bg5 {[%emt 0:00:39]} e6 {[%emt 0:00:23]} 9. O-O-O {[%emt 0:00:43]} Be7 {[%emt 0:00:21]} 10. Qd3 {[%emt 0:01:17]} Qa5 {[%emt 0:05:48]} 11. h4 {[%emt 0:01:00]} h6 {[%emt 0:10:21]} 12. Bd2 {[%emt 0:04:17]} Qa6 {[%emt 0:01:59]} 13. Qxa6 bxa6 {[%emt 0:00:22]} 14. Rhe1 {[%emt 0:16:17]} Ng4 {[%emt 0:09:22]} 15. Re2 {[%emt 0:01:18]} O-O {[%emt 0:03:58]} 16. Nd4 {[%emt 0:13:02]} Bb7 {[%emt 0:04:37]} 17. f3 {[%emt 0:03:06]} Ne5 {[%emt 0:00:21]} 18. Be1 {[%emt 0:00:23]} Rac8 {[%emt 0:03:20]} 19. Kb1 {[%emt 0:09:46]} 1/2-1/2

[Event "2nd Serbian League-Vojvodina 2023"]
[Site "Novi Sad"]
[Date "2023.11.06"]
[Round "7.16"]
[White "Juhasz, Bence R"]
[Black "Milanovic, Marko"]
[Result "0-1"]
[ECO "C45"]
[WhiteElo "2210"]
[BlackElo "2248"]
[Annotator "RC"]
[PlyCount "46"]
[EventDate "2023.10.22"]
[EventType "team-tourn"]
[EventCountry "SRB"]
[SourceTitle "playchess.com"]
[Source "ChessBase"]
[SourceQuality "1"]
[TimeControl "40/5400+30:1800+30"]

1. e4 {[%emt 1:31:00]} e5 {[%emt 1:31:00]} 2. Nf3 {[%emt 0:00:30]} Nc6 {[%emt 0:00:30]} 3. d4 {[%emt 0:00:30]} exd4 {[%emt 0:00:00]} 4. Nxd4 {[%emt 0:00:30]} Nf6 {[%emt 0:00:00]} 5. Nxc6 {[%emt 0:00:30]} bxc6 {[%emt 0:01:30]} 6. e5 {[%emt 0:00:30]} Qe7 {[%emt 0:00:00]} 7. Qe2 {[%emt 0:00:30]} Nd5 {[%emt 0:01:00]} 8. h4 {[%emt 0:00:30]} Qe6 {[%emt 0:00:30]} 9. Nd2 {[%emt 0:00:30]} g6 {[%emt 0:00:00]} 10. c4 Nb6 {[%emt 0:01:00]} 11. b3 {[%emt 0:01:00]} Bg7 {[%emt 0:00:30]} 12. Bb2 {[%emt 0:00:00]} O-O 13. Nf3 {[%emt 0:01:00]} Re8 {[%emt 0:01:00]} 14. h5 {[%emt 0:00:00]} d5 {[%emt 0:00:00]} 15. hxg6 hxg6 {[%emt 0:01:00]} 16. cxd5 {[%emt 0:01:30]} cxd5 {[%emt 0:00:30]} 17. g3 {[%emt 0:00:30]} Qf5 {[%emt 0:00:30]} 18. Rh4 {[%emt 0:00:30]} g5 {[%emt 0:00:30]} 19. Rh5 {[%emt 0:00:00]} f6 20. Qe3 {[%emt 0:01:00]} Qc2 {[%emt 0:01:00]} 21. Bc3 {[%emt 0:00:30]} Bg4 {[%emt 0:00:30]} 22. Nd4 {[%emt 0:00:30]} Qg6 {[%emt 0:00:30]} 23. Rh1 {[%emt 0:00:30]} Rxe5 {[%emt 0:00:30]} 0-1